bitfinex/quotes_BTCUSD_20250529
["timestamp","ask_amount","ask_price","bid_price","bid_amount"]
[1748535220939,1.32547832,106970.0,106960.0,0.06758536]
[1748535221604,1.32547832,106970.0,106960.0,0.0501]
[1748535221823,1.32547832,106970.0,106960.0,0.06758415]
[1748535222253,1.32547832,106970.0,106960.0,0.06759202]
[1748535223180,1.32547832,106970.0,106960.0,0.0501]
[1748535223403,1.32547832,106970.0,106960.0,0.06759104]
[1748535223848,1.32547832,106970.0,106960.0,0.06759118]
[1748535224063,1.32547832,106970.0,106960.0,0.0675913]
[1748535224509,1.32547832,106970.0,106960.0,0.0501]
[1748535224726,1.32547832,106970.0,106960.0,0.06759132]
[1748535224948,1.32547832,106970.0,106960.0,0.0675902]
[1748535225161,1.32547832,106970.0,106960.0,0.0501]
[1748535226499,1.32547832,106970.0,106960.0,0.06758934]
[1748535227208,0.83757832,106970.0,106960.0,0.06758934]
[1748535227638,0.83758478,106970.0,106960.0,0.06758934]
[1748535227853,0.83758478,106970.0,106960.0,0.0501]
[1748535230153,0.80951678,106970.0,106960.0,0.0501]
[1748535231928,0.78939049,106970.0,106960.0,0.0501]
[1748535232166,0.80931186,106970.0,106960.0,0.0501]
[1748535232409,0.81299825,106970.0,106960.0,0.0501]
[1748535232634,0.91493645,106970.0,106960.0,0.0501]
[1748535232852,0.84135129,106970.0,106960.0,0.0501]
[1748535233101,0.53633489,106960.0,106950.0,4e-05]
[1748535233323,0.7132915,106960.0,106950.0,4e-05]
[1748535235339,0.7172915,106960.0,106950.0,4e-05]
[1748535235595,0.7212915,106960.0,106950.0,4e-05]
[1748535236249,0.72127909,106960.0,106950.0,4e-05]
[1748535236914,0.71653037,106960.0,106950.0,4e-05]
[1748535237136,0.53635325,106950.0,106940.0,0.00016]
[1748535237357,0.82138656,106950.0,106940.0,0.00016]
[1748535237818,0.80098894,106950.0,106910.0,0.0748798]
[1748535238031,0.80098894,106950.0,106910.0,4e-05]
[1748535238032,0.54576069,106920.0,106910.0,4e-05]
[1748535238270,0.55460222,106920.0,106910.0,0.3769998]
[1748535238727,0.64565617,106920.0,106910.0,0.3769998]
[1748535238946,0.64565617,106920.0,106910.0,0.0748798]
[1748535239164,0.64565617,106920.0,106910.0,0.3770398]
[1748535239408,0.64965617,106920.0,106910.0,0.3770398]
[1748535239618,0.71255617,106920.0,106910.0,0.0748798]
[1748535240056,0.71255617,106920.0,106910.0,0.3769998]
[1748535240506,0.71254215,106920.0,106910.0,0.3769998]
[1748535240730,0.71554215,106920.0,106910.0,0.3769998]
[1748535240949,0.71554215,106920.0,106910.0,0.30216]
[1748535241410,0.71554215,106920.0,106910.0,4e-05]
[1748535241650,0.72657654,106920.0,106910.0,4e-05]
[1748535242986,0.82353654,106920.0,106910.0,4e-05]
[1748535243284,0.78089774,106920.0,106910.0,4e-05]
[1748535243515,0.65263774,106920.0,106910.0,0.30216]
[1748535244187,0.66077168,106920.0,106910.0,0.30216]
[1748535244869,0.65194858,106920.0,106910.0,0.30216]
[1748535245540,0.72397046,106920.0,106910.0,4e-05]
[1748535250476,0.7239626,106920.0,106910.0,4e-05]
[1748535250943,0.6607626,106920.0,106910.0,4e-05]
[1748535251816,0.66076257,106920.0,106910.0,4e-05]
[1748535252027,0.72246257,106920.0,106910.0,4e-05]
[1748535254108,0.32076257,106920.0,106910.0,0.56695408]
[1748535254329,0.10740603,106920.0,106910.0,0.58566096]
[1748535254554,0.01635208,106920.0,106910.0,0.6673616]
[1748535254793,0.20340782,106920.0,106910.0,0.65800803]
[1748535255017,0.22446503,106920.0,106910.0,0.4709348]
[1748535255239,0.23381781,106920.0,106910.0,0.4709348]
[1748535255463,0.1964057,106930.0,106920.0,0.0633]
[1748535255705,0.21510873,106930.0,106920.0,0.0633]
[1748535255939,0.21510873,106930.0,106920.0,0.07784085]
[1748535256160,0.22446055,106930.0,106920.0,0.1688948]
[1748535256595,0.22446055,106930.0,106920.0,0.17123273]
[1748535256813,0.20575691,106930.0,106920.0,0.27758542]
[1748535257043,0.1964021,106940.0,106930.0,0.07744085]
[1748535257310,0.1964021,106940.0,106930.0,0.37940085]
[1748535257311,0.2151039,106940.0,106930.0,0.37940085]
[1748535258243,0.20575244,106940.0,106930.0,0.66684477]
[1748535258468,0.21510219,106950.0,106940.0,0.063]
[1748535258690,0.17510219,106950.0,106940.0,0.063]
[1748535258901,0.16575247,106950.0,106940.0,0.063]
[1748535260025,0.16575247,106950.0,106940.0,0.01454085]
[1748535260026,0.16809467,106950.0,106940.0,0.01454085]
[1748535260250,0.16909467,106950.0,106940.0,0.31642085]
[1748535261367,0.17009467,106950.0,106940.0,0.31638085]
[1748535262045,0.20574144,106930.0,106920.0,0.0632]
[1748535262269,0.20574144,106930.0,106920.0,0.47630085]
[1748535262489,0.20574144,106930.0,106920.0,0.07774085]
[1748535262942,0.20574144,106930.0,106920.0,0.37958085]
[1748535263370,0.20545438,106930.0,106920.0,0.38258085]
[1748535265549,0.22444448,106930.0,106920.0,0.4736348]
[1748535265793,0.19379595,106930.0,106920.0,0.4736348]
[1748535266009,0.18444474,106930.0,106920.0,0.4736348]
[1748535266441,0.18444474,106930.0,106920.0,0.66069054]
[1748535266442,0.17509239,106930.0,106920.0,0.66069054]
[1748535266669,0.01870259,106930.0,106920.0,0.67939575]
[1748535266886,0.19638744,106940.0,106930.0,0.07824085]
[1748535267091,0.21508854,106940.0,106930.0,0.17163251]
[1748535267300,0.21508854,106940.0,106930.0,0.26835251]
[1748535267538,0.21508854,106940.0,106930.0,0.2660148]
[1748535267751,0.21508854,106940.0,106930.0,0.46240486]
[1748535267752,0.20573759,106940.0,106930.0,0.46240486]
[1748535267956,0.21508854,106940.0,106930.0,0.27536671]
[1748535268164,0.21508854,106940.0,106930.0,0.2660148]
[1748535268596,0.20573812,106940.0,106930.0,0.2660148]
[1748535269069,0.20573759,106940.0,106930.0,0.46240486]
[1748535269316,0.00939852,106950.0,106940.0,0.2649616]
[1748535269526,0.21510115,106950.0,106940.0,0.59469383]
[1748535269746,0.22445113,106950.0,106940.0,0.67639727]
[1748535269969,0.22445113,106950.0,106940.0,0.6670465]
[1748535270409,0.22445192,106950.0,106940.0,0.6670465]
[1748535270625,0.21510176,106950.0,106940.0,0.6690465]
[1748535270839,0.21510176,106950.0,106940.0,0.67839736]
[1748535271052,0.21510176,106950.0,106940.0,0.6690465]
[1748535271257,0.21510176,106950.0,106940.0,0.67839736]
[1748535271483,4.915e-05,106950.0,106940.0,0.69809846]
[1748535271713,0.01874815,106950.0,106940.0,0.69809846]
[1748535271964,0.01874807,106950.0,106940.0,0.80161846]
[1748535272212,0.00939852,106950.0,106940.0,0.80161846]
[1748535272453,0.00939852,106950.0,106940.0,0.69809846]
[1748535272735,0.20575248,106950.0,106940.0,0.4736348]
[1748535273186,0.20575248,106950.0,106940.0,0.6700065]
[1748535273441,0.20575239,106950.0,106940.0,0.6700065]
[1748535274003,0.20575239,106950.0,106940.0,0.1719948]
[1748535274235,0.20575239,106950.0,106940.0,0.5702748]
[1748535274484,0.20575239,106950.0,106940.0,0.003]
[1748535274715,0.20575239,106950.0,106940.0,0.31914085]
[1748535274952,0.20575239,106950.0,106940.0,0.003]
[1748535275173,0.20575239,106950.0,106940.0,0.31910085]
[1748535275415,0.20575239,106950.0,106940.0,0.30456]
[1748535275895,0.20575239,106950.0,106940.0,0.003]
[1748535276111,0.20575239,106950.0,106940.0,0.31910085]
[1748535276364,0.20575239,106950.0,106940.0,0.01754085]
[1748535276623,0.23855239,106950.0,106940.0,0.01754085]
[1748535276864,0.27045239,106950.0,106940.0,0.31910085]
[1748535277314,0.27045239,106950.0,106940.0,0.01754085]
[1748535277539,0.27045239,106950.0,106940.0,0.31906085]
[1748535277974,0.23855239,106950.0,106940.0,0.31906085]
[1748535278913,0.20575239,106950.0,106940.0,0.31906085]
[1748535279570,0.20575239,106950.0,106940.0,0.34916085]
[1748535280026,0.20575239,106950.0,106940.0,0.31906085]
[1748535280536,0.20575239,106950.0,106940.0,0.31902085]
[1748535280977,0.20575239,106950.0,106940.0,0.01754085]
[1748535281196,0.20575239,106950.0,106940.0,0.31902085]
[1748535282493,0.20575239,106950.0,106940.0,0.01754085]
[1748535282733,0.23745239,106950.0,106940.0,0.31898085]
[1748535282970,0.23745239,106950.0,106940.0,0.01754085]
[1748535282971,0.27035239,106950.0,106940.0,0.01754085]
[1748535283193,0.27035239,106950.0,106940.0,0.31898085]
[1748535283672,0.27920557,106950.0,106940.0,0.31898085]
[1748535284354,0.24630557,106950.0,106940.0,0.31898085]
[1748535284797,0.24630557,106950.0,106940.0,0.01754085]
[1748535285049,0.24630557,106950.0,106940.0,0.31898085]
[1748535286014,0.24630557,106950.0,106940.0,0.01754085]
[1748535286231,0.27940557,106950.0,106940.0,0.01754085]
[1748535286488,0.27940557,106950.0,106940.0,0.31894085]
[1748535288162,0.21460557,106950.0,106940.0,0.31894085]
[1748535288424,0.20575239,106950.0,106940.0,0.31890085]
[1748535289490,0.20575239,106950.0,106940.0,0.41558085]
[1748535289713,0.20575239,106950.0,106940.0,0.6645016]
[1748535289932,0.21510211,106950.0,106940.0,0.77425735]
[1748535290152,0.21510211,106950.0,106940.0,0.78360795]
[1748535290368,0.22445209,106950.0,106940.0,0.77425744]
[1748535290590,0.22445209,106950.0,106940.0,0.78360821]
[1748535290798,0.22445209,106950.0,106940.0,0.79295889]
[1748535291012,0.22445209,106950.0,106940.0,0.78360821]
[1748535291224,0.22445209,106950.0,106940.0,0.77425744]
[1748535291435,0.22445209,106950.0,106940.0,0.78360821]
[1748535291730,0.22445209,106950.0,106940.0,0.77425744]
[1748535291942,0.21510246,106950.0,106940.0,0.78360821]
[1748535292347,0.21510246,106950.0,106940.0,0.46354658]
[1748535292489,0.21510246,106950.0,106940.0,0.77421753]
[1748535292692,0.21510246,106950.0,106940.0,0.5684948]
[1748535293069,0.19640258,106950.0,106940.0,0.31886085]
[1748535294001,0.19640258,106950.0,106940.0,0.31890085]
[1748535295303,0.19640258,106950.0,106940.0,0.35050085]
[1748535296054,0.19640258,106950.0,106940.0,0.31890085]
[1748535296951,0.19640258,106950.0,106940.0,0.31882085]
[1748535297374,0.25940258,106950.0,106940.0,0.01758085]
[1748535297593,0.2682632,106950.0,106940.0,0.00304]
[1748535297815,0.2682632,106950.0,106940.0,0.30428]
[1748535298031,0.2682632,106950.0,106940.0,0.31882085]
[1748535299395,0.6082632,106950.0,106940.0,0.31878085]
[1748535300043,0.6082632,106950.0,106940.0,0.01758085]
[1748535300260,0.69931715,106950.0,106940.0,0.30424]
[1748535300485,0.71038915,106950.0,106940.0,0.30424]
[1748535301203,0.69045653,106950.0,106940.0,0.30424]
[1748535301425,0.71038829,106950.0,106940.0,0.30424]
[1748535303433,0.69931509,106950.0,106940.0,0.30424]
[1748535303650,0.71038829,106950.0,106940.0,0.30424]
[1748535303866,0.69931509,106950.0,106940.0,0.30424]
[1748535304085,0.69931509,106950.0,106940.0,0.31878085]
[1748535304302,0.54526114,106950.0,106940.0,0.31878085]
[1748535304945,0.20526114,106950.0,106940.0,0.35128085]
[1748535305164,0.19640258,106950.0,106940.0,0.35128085]
[1748535305812,0.20525976,106950.0,106940.0,0.31878085]
[1748535306055,0.23625976,106950.0,106940.0,0.33627437]
[1748535306503,0.69801371,106950.0,106940.0,0.32165485]
[1748535306716,0.69801371,106950.0,106940.0,0.02053513]
[1748535306938,0.69801371,106950.0,106940.0,0.30416]
[1748535307148,0.69801371,106950.0,106940.0,0.32165577]
[1748535307368,0.69801371,106950.0,106940.0,0.32165615]
[1748535307587,0.69801371,106950.0,106940.0,0.32165629]
[1748535307800,0.69801371,106950.0,106940.0,0.32165614]
[1748535308468,0.57625976,106950.0,106940.0,0.33619456]
[1748535308686,0.57625976,106950.0,106940.0,0.33619415]
[1748535308898,0.57625976,106950.0,106940.0,0.33619406]
[1748535309107,0.60945976,106950.0,106940.0,0.33619427]
[1748535309320,0.60946125,106950.0,106940.0,0.33619426]
[1748535311566,0.20575256,106950.0,106940.0,0.36859449]
[1748535311992,0.20575256,106950.0,106940.0,0.35102085]
[1748535312650,0.20575256,106950.0,106940.0,0.36851277]
[1748535312860,0.20575256,106950.0,106940.0,0.36851254]
[1748535313499,0.20575256,106950.0,106940.0,0.3685125]
[1748535313914,0.20575256,106950.0,106940.0,0.36851181]
[1748535314854,0.16575256,106950.0,106940.0,0.36851181]
[1748535315060,0.16575256,106950.0,106940.0,0.39901181]
[1748535315278,0.1869867,106960.0,106940.0,0.39901181]
[1748535315279,0.1869867,106960.0,106950.0,0.24409419]
[1748535315500,0.1963359,106960.0,106950.0,0.30143311]
[1748535315729,0.1963359,106960.0,106950.0,0.46208814]
[1748535315730,0.20568483,106960.0,106950.0,0.46208814]
[1748535315957,0.20568483,106960.0,106950.0,0.47957094]
[1748535316174,0.20568483,106960.0,106950.0,0.2657348]
[1748535316388,0.20568483,106960.0,106950.0,0.28321748]
[1748535316610,0.20568483,106960.0,106950.0,0.28321429]
[1748535316831,0.20568483,106960.0,106950.0,0.47956778]
[1748535316832,0.00934893,106960.0,106950.0,0.47956778]
[1748535317058,0.28052761,106980.0,106970.0,0.04584085]
[1748535317308,0.28057677,106980.0,106970.0,0.36423872]
[1748535317528,0.28057677,106980.0,106970.0,0.39483785]
[1748535317979,0.28057677,106980.0,106970.0,0.39483743]
[1748535318424,0.28157677,106980.0,106970.0,0.40418584]
[1748535318690,0.19734735,106980.0,106970.0,0.69692619]
[1748535318935,0.20669445,106980.0,106970.0,0.49126133]
[1748535319154,0.20669445,106980.0,106970.0,0.50060772]
[1748535319373,0.19934735,106980.0,106970.0,0.47380085]
[1748535319602,0.19934735,106980.0,106970.0,0.49125895]
[1748535319603,0.19834735,106980.0,106970.0,0.49125895]
[1748535319846,0.19634735,106980.0,106970.0,0.03199895]
[1748535320051,0.59714735,106980.0,106970.0,0.01945863]
[1748535320267,0.59714735,106980.0,106970.0,0.02045863]
[1748535320489,0.69704308,106980.0,106970.0,0.30388]
[1748535322120,0.69704308,106980.0,106970.0,0.30384]
[1748535322351,0.69704308,106980.0,106970.0,0.003]
[1748535322569,0.70811642,106980.0,106970.0,0.003]
[1748535323517,0.79320308,106980.0,106970.0,0.003]
[1748535323753,0.69704308,106980.0,106970.0,0.001]
[1748535324203,0.69704308,106980.0,106960.0,0.30084]
[1748535324420,0.53631654,106970.0,106960.0,0.31538085]
[1748535324638,0.54515832,106970.0,106960.0,0.31538085]
[1748535325363,0.53631654,106970.0,106960.0,0.31638085]
[1748535325576,0.20566469,106970.0,106960.0,0.37938085]
[1748535325789,0.20566469,106970.0,106960.0,0.37838085]
[1748535326002,0.20566469,106970.0,106960.0,0.47454085]
[1748535326213,0.20566469,106970.0,106960.0,0.5685948]
[1748535326442,0.19631654,106970.0,106960.0,0.5685948]
[1748535326875,0.15631654,106970.0,106960.0,0.5685948]
[1748535327093,0.16566478,106970.0,106960.0,0.5685948]
[1748535327942,0.15631654,106970.0,106960.0,0.5685948]
[1748535328149,0.15631654,106970.0,106960.0,0.2677548]
[1748535328356,0.15631654,106970.0,106960.0,0.5685148]
[1748535329662,0.15631654,106970.0,106960.0,0.5361148]
[1748535329877,0.15865874,106970.0,106960.0,0.31830085]
[1748535330327,0.15865874,106970.0,106960.0,0.35020085]
[1748535330752,0.15631654,106970.0,106960.0,0.35020085]
[1748535330965,0.17501249,106970.0,106960.0,0.4715548]
[1748535331191,0.20566398,106970.0,106960.0,0.48090408]
[1748535331436,0.21501213,106970.0,106960.0,0.4715548]
[1748535331667,0.22436037,106970.0,106960.0,0.49025328]
[1748535331872,0.22436037,106970.0,106960.0,0.66788978]
[1748535332084,0.22436037,106970.0,106960.0,0.65854058]
[1748535332297,0.23370869,106970.0,106960.0,0.48090408]
[1748535332507,0.22436037,106970.0,106960.0,0.4715548]
[1748535332738,0.23370878,106970.0,106960.0,0.4715548]
[1748535333383,0.23370869,106970.0,106960.0,0.4715548]
[1748535333838,0.19370869,106970.0,106960.0,0.4715548]
[1748535334061,0.17501213,106970.0,106960.0,0.66788986]
[1748535334308,0.18435984,106970.0,106960.0,0.67723906]
[1748535334530,0.18699999,106980.0,106970.0,0.26720915]
[1748535334755,0.20569454,106980.0,106970.0,0.08024085]
[1748535334984,0.21504147,106980.0,106970.0,0.36761134]
[1748535335212,0.21504156,106980.0,106970.0,0.36761134]
[1748535335459,0.20569411,106980.0,106970.0,0.3769594]
[1748535335685,0.01874292,106980.0,106970.0,0.3863072]
[1748535335917,0.01874292,106980.0,106970.0,0.3769594]
[1748535336145,0.23373575,106980.0,106970.0,0.37695949]
[1748535336369,0.224389,106980.0,106970.0,0.1712948]
[1748535336585,0.225389,106980.0,106970.0,0.36761142]
[1748535336810,0.225389,106980.0,106970.0,0.1712948]
[1748535336811,0.21604199,106980.0,106970.0,0.1712948]
[1748535337041,0.21604199,106980.0,106970.0,0.1742948]
[1748535337261,0.21504199,106980.0,106970.0,0.18364321]
[1748535337486,0.21504199,106980.0,106970.0,0.1762948]
[1748535337722,0.21504199,106980.0,106970.0,0.18564321]
[1748535338208,0.20569489,106980.0,106970.0,0.1762948]
[1748535338444,0.20569489,106980.0,106970.0,0.37261142]
[1748535338658,0.20569489,106980.0,106970.0,0.1762948]
[1748535339105,0.20569489,106980.0,106970.0,0.19388551]
[1748535339561,0.20569489,106980.0,106970.0,0.1845371]
[1748535339784,0.20569489,106980.0,106970.0,0.19388551]
[1748535340226,0.20569489,106980.0,106970.0,0.38085381]
[1748535340436,0.20569489,106980.0,106970.0,0.39020213]
[1748535340890,0.20569489,106980.0,106970.0,0.38085381]
[1748535341107,0.16569489,106980.0,106970.0,0.39020213]
[1748535341324,0.16569489,106980.0,106970.0,0.1845371]
[1748535341540,0.16569489,106980.0,106970.0,0.5073148]
[1748535342175,0.16569489,106980.0,106970.0,0.5375148]
[1748535342618,15.19587824,107000.0,106990.0,0.01454085]
[1748535342845,15.19587824,107000.0,106990.0,0.4363148]
[1748535342846,15.20572302,107000.0,106990.0,0.4363148]
[1748535343077,15.20572302,107000.0,106990.0,0.31506085]
[1748535343952,15.20672302,107000.0,106990.0,0.31506085]
[1748535344173,15.001,107000.0,106990.0,1.21666718]
[1748535344417,15.03838123,107000.0,106990.0,0.7707956]
[1748535344633,15.03838123,107000.0,106990.0,0.78948858]
[1748535344857,15.20660684,107000.0,106990.0,0.3336883]
[1748535345506,15.20560684,107000.0,106990.0,0.3336883]
[1748535345774,15.20560684,107000.0,106990.0,0.3346883]
[1748535345994,15.20560684,107000.0,106990.0,0.70511454]
[1748535345995,15.0,107000.0,106990.0,0.70511454]
[1748535346221,15.01869027,107000.0,106990.0,0.70511454]
[1748535346433,15.02803562,107000.0,106990.0,0.70511454]
[1748535347132,15.22429773,107000.0,106990.0,0.69576858]
[1748535347351,15.20560711,107000.0,106990.0,0.12526225]
[1748535347570,15.18691588,107000.0,106990.0,0.68871858]
[1748535347795,15.20560684,107000.0,106990.0,0.69572866]
[1748535348003,15.21495254,107000.0,106990.0,0.69572866]
[1748535348217,15.02779666,107000.0,106990.0,0.70507506]
[1748535348440,15.21471254,107000.0,106990.0,0.70507497]
[1748535348658,15.02779666,107000.0,106990.0,0.68332111]
[1748535348884,15.20536737,107000.0,106990.0,0.0344083]
[1748535349108,15.20536737,107000.0,106990.0,0.49163875]
[1748535349109,15.18667588,107000.0,106990.0,0.49163875]
[1748535349334,15.20536702,107000.0,106990.0,0.3348483]
[1748535350221,15.20536702,107000.0,106990.0,0.52178165]
[1748535350435,15.20536702,107000.0,106990.0,0.3348083]
[1748535350665,15.20536702,107000.0,106990.0,0.3346083]
[1748535350937,15.19602158,107000.0,106990.0,0.3346083]
[1748535351367,14.99976,107000.0,106990.0,0.99891463]
[1748535351587,15.00910509,107000.0,106990.0,0.70373454]
[1748535351799,14.99976,107000.0,106990.0,0.40333454]
[1748535352013,15.00910509,107000.0,106990.0,0.70373454]
[1748535352223,14.99976,107000.0,106990.0,0.70373454]
[1748535352887,15.22405711,107000.0,106990.0,0.18836225]
[1748535353096,15.21471254,107000.0,106990.0,0.43496891]
[1748535353305,15.21471254,107000.0,106990.0,0.63124866]
[1748535353782,15.21471254,107000.0,106990.0,0.63124867]
[1748535353987,15.21471254,107000.0,106990.0,0.64059507]
[1748535354203,15.02779666,107000.0,106990.0,0.65928752]
[1748535354405,15.22405833,107000.0,106990.0,0.63124867]
[1748535354610,15.22405833,107000.0,106990.0,0.62190218]
[1748535355922,15.19602167,107000.0,106990.0,0.63124867]
[1748535356154,15.2053672,107000.0,106990.0,0.63124867]
[1748535356365,15.2053672,107000.0,106990.0,0.6125556]
[1748535356587,15.21471238,107000.0,106990.0,0.63124866]
[1748535356801,15.21471238,107000.0,106990.0,0.6499412]
[1748535357022,15.21471238,107000.0,106990.0,0.64059497]
[1748535357238,15.0277965,107000.0,106990.0,0.64059497]
[1748535357513,15.0277965,107000.0,106990.0,0.64994111]
[1748535357718,15.21471238,107000.0,106990.0,0.64059497]
[1748535357933,15.00910509,107000.0,106990.0,0.71184111]
[1748535358140,15.01845036,107000.0,106990.0,0.71184111]
[1748535358371,15.00910509,107000.0,106990.0,0.71184111]
[1748535358625,14.99976,107000.0,106990.0,1.7433412]
[1748535358842,14.99976,107000.0,106990.0,1.7533412]
[1748535359684,14.99976,107000.0,106990.0,1.7583412]
[1748535359907,14.35340776,107000.0,106990.0,2.50234129]
[1748535360133,13.21583924,107000.0,106990.0,2.49664129]
[1748535360353,13.21583924,107000.0,106990.0,2.50174129]
[1748535360354,12.79341137,107000.0,106990.0,2.50174129]
[1748535360573,12.74536848,107000.0,106990.0,2.50074129]
[1748535360819,12.65846867,107000.0,106990.0,2.80632129]
[1748535361064,12.65846867,107000.0,106990.0,2.89974129]
[1748535361065,12.56795867,107000.0,106990.0,2.89974129]
[1748535361369,12.56795867,107000.0,106990.0,2.86746982]
[1748535361370,12.56048342,107000.0,106990.0,2.86746982]
[1748535361581,11.79010137,107000.0,106990.0,3.19181963]
[1748535361797,11.79110137,107000.0,106990.0,3.19881963]
[1748535362022,11.73692361,107000.0,106990.0,3.24381963]
[1748535362243,11.64028777,107000.0,106990.0,3.24381963]
[1748535362455,11.50024229,107000.0,106990.0,2.84853963]
[1748535362691,11.50024229,107000.0,106990.0,3.24465963]
[1748535362692,10.78888754,107000.0,106990.0,3.24465963]
[1748535362905,10.71059406,107000.0,106990.0,3.23665963]
[1748535363119,10.62640127,107000.0,106990.0,3.23665963]
[1748535363333,10.60675227,107000.0,106990.0,3.23665963]
[1748535363549,10.51988103,107000.0,106990.0,3.23665963]
[1748535364008,10.44839038,107000.0,106990.0,3.24465963]
[1748535364228,10.31115279,107000.0,106990.0,3.2227311]
[1748535364458,10.21027006,107000.0,106990.0,2.07358256]
[1748535364680,10.21027006,107000.0,106990.0,2.44980035]
[1748535364681,10.1570923,107000.0,106990.0,2.44980035]
[1748535364908,10.1570923,107000.0,106990.0,2.15897919]
[1748535365148,10.1570923,107000.0,106990.0,2.47364004]
[1748535365392,10.1570923,107000.0,106990.0,2.12364004]
[1748535365616,10.1570923,107000.0,106990.0,1.81909919]
[1748535365854,10.1570923,107000.0,106990.0,2.17364004]
[1748535366084,10.1570923,107000.0,106990.0,2.17368004]
[1748535367268,10.09002316,107000.0,106990.0,2.17368004]
[1748535367500,10.09002316,107000.0,106990.0,2.17364004]
[1748535368181,10.09002316,107000.0,106990.0,1.77764004]
[1748535368436,10.05733664,107000.0,106990.0,1.77764004]
[1748535368677,10.04986544,107000.0,106990.0,2.17360004]
[1748535368917,10.04239424,107000.0,106990.0,2.17360004]
[1748535369187,10.04005842,107000.0,106990.0,2.47070004]
[1748535369421,9.9999007,107000.0,106990.0,2.47070004]
[1748535369665,9.9999007,107000.0,106990.0,3.14391526]
[1748535369666,8.35718632,107000.0,106990.0,3.14391526]
[1748535369924,8.21820209,107000.0,106990.0,3.16684379]
[1748535370155,8.04704952,107000.0,106990.0,4.02075379]
[1748535370373,7.94479952,107000.0,106990.0,4.02075379]
[1748535370610,7.89063832,107000.0,106990.0,4.02075379]
[1748535370826,6.4155618,107000.0,106990.0,4.00175379]
[1748535371063,6.3604006,107000.0,106990.0,4.01075379]
[1748535371272,6.3604006,107000.0,106990.0,4.01975379]
[1748535371273,6.2255494,107000.0,106990.0,4.01975379]
[1748535371497,6.1779168,107000.0,106990.0,4.01975379]
[1748535371697,6.1504626,107000.0,106990.0,4.01975379]
[1748535371903,6.0314626,107000.0,106990.0,4.01975379]
[1748535372120,5.96090488,107000.0,106990.0,2.32772536]
[1748535372338,5.96090488,107000.0,106990.0,2.72360536]
[1748535372339,5.91420986,107000.0,106990.0,2.72360536]
[1748535372552,5.81334862,107000.0,106990.0,2.72360536]
[1748535372780,5.81334862,107000.0,106990.0,2.30906451]
[1748535372781,5.73396708,107000.0,106990.0,2.30906451]
[1748535373023,5.73396708,107000.0,106990.0,2.11476451]
[1748535373024,5.72649588,107000.0,106990.0,2.11476451]
[1748535373236,5.50649588,107000.0,106990.0,2.21284451]
[1748535373661,5.50649588,107000.0,106990.0,1.75796451]
[1748535373881,5.49902468,107000.0,106990.0,2.14484451]
[1748535374106,5.49902468,107000.0,106990.0,2.12038536]
[1748535374323,5.49902468,107000.0,106990.0,1.21070527]
[1748535374324,5.49155402,107000.0,106990.0,1.21070527]
[1748535374533,5.49155402,107000.0,106990.0,1.11028442]
[1748535374739,5.49155402,107000.0,106990.0,0.8612991]
[1748535374949,5.49160318,107000.0,106990.0,1.22579995]
[1748535375176,5.49160318,107000.0,106990.0,1.56579995]
[1748535375807,5.49160318,107000.0,106990.0,1.11995995]
[1748535376019,5.49160318,107000.0,106990.0,0.77995995]
[1748535376224,5.49160318,107000.0,106990.0,0.8612991]
[1748535376433,5.49160318,107000.0,106990.0,1.5512591]
[1748535376713,5.49160318,107000.0,106990.0,1.51579995]
[1748535376911,5.49160318,107000.0,106990.0,1.1054191]
[1748535377102,5.49160318,107000.0,106990.0,1.56579995]
[1748535379296,5.49160318,107000.0,106990.0,0.86583995]
[1748535379515,5.49160318,107000.0,106990.0,1.16579995]
[1748535379728,5.49160318,107000.0,106990.0,1.56579995]
[1748535380161,5.52210318,107000.0,106990.0,1.21583995]
[1748535380377,5.55380318,107000.0,106990.0,1.56575995]
[1748535380826,5.49160318,107000.0,106990.0,1.56575995]
[1748535381477,5.49160318,107000.0,106990.0,1.55475995]
[1748535382354,5.49160318,107000.0,106990.0,1.56075995]
[1748535382785,5.49160318,107000.0,106990.0,2.23117984]
[1748535383004,5.49160318,107000.0,106990.0,2.227841]
[1748535383262,5.49160318,107000.0,106990.0,2.24581149]
[1748535384332,5.49160318,107000.0,106990.0,1.1785916]
[1748535384553,5.49160318,107000.0,106990.0,1.5242316]
[1748535384792,5.49160318,107000.0,106990.0,1.5742316]
[1748535385677,5.49160318,107000.0,106990.0,1.5242316]
[1748535385970,5.49160318,107000.0,106990.0,1.5742316]
[1748535390555,5.49160318,107000.0,106990.0,2.16981169]
[1748535391239,5.49160318,107000.0,106990.0,2.1518412]
[1748535391240,5.46551318,107000.0,106990.0,2.1518412]
[1748535391468,5.42464943,107000.0,106990.0,2.5502612]
[1748535391682,5.42464943,107000.0,106990.0,2.625101]
[1748535391683,5.37048301,107000.0,106990.0,2.625101]
[1748535391892,5.32378996,107000.0,106990.0,2.625101]
[1748535392114,5.25575572,107000.0,106990.0,2.625101]
[1748535392337,5.25575572,107000.0,106990.0,2.93165657]
[1748535392338,5.16909059,107000.0,106990.0,2.93165657]
[1748535392569,5.16161971,107000.0,106990.0,2.93165657]
[1748535392789,5.11492666,107000.0,106990.0,2.74918433]
[1748535393011,5.0280776,107000.0,106990.0,2.73607648]
[1748535393232,5.0280776,107000.0,106990.0,2.74318433]
[1748535393455,5.02060672,107000.0,106990.0,2.73007648]
[1748535393683,4.98045071,107000.0,106990.0,2.73107648]
[1748535393902,4.98045071,107000.0,106990.0,2.73807648]
[1748535394134,4.9402947,107000.0,106990.0,2.75679648]
[1748535394566,4.93282382,107000.0,106990.0,2.75679648]
[1748535394794,4.90013869,107000.0,106990.0,2.68195668]
[1748535395013,4.89266781,107000.0,106990.0,2.69030897]
[1748535395495,4.8525118,107000.0,106990.0,2.69030897]
[1748535395706,4.84504092,107000.0,106990.0,2.69030897]
[1748535396159,4.80488491,107000.0,106990.0,2.69030897]
[1748535396631,4.80488491,107000.0,106990.0,2.69014897]
[1748535396632,4.79741403,107000.0,106990.0,2.69014897]
[1748535396851,4.7647289,107000.0,106990.0,2.69014897]
[1748535397062,4.75725802,107000.0,106990.0,2.69014897]
[1748535397280,4.74733116,107000.0,106990.0,2.69014897]
[1748535397501,4.70750331,107000.0,106990.0,3.36056886]
[1748535397728,4.70003243,107000.0,106990.0,2.76498877]
[1748535397956,4.70003243,107000.0,106990.0,2.98724897]
[1748535398171,4.65987642,107000.0,106990.0,2.98724897]
[1748535398591,4.65240684,107000.0,106990.0,2.98740897]
[1748535398803,4.61972742,107000.0,106990.0,2.59176897]
[1748535399015,4.61225784,107000.0,106990.0,2.98732897]
[1748535399257,4.61225784,107000.0,106990.0,2.96860897]
[1748535399472,4.60478826,107000.0,106990.0,2.57304897]
[1748535399690,4.59731868,107000.0,106990.0,2.96856897]
[1748535399908,4.54063926,107000.0,106990.0,2.96856897]
[1748535400149,0.29732968,107000.0,106990.0,3.00602663]
[1748535400409,0.0161396,107070.0,107040.0,0.09322449]
[1748535400410,0.0616,107050.0,107040.0,0.09322449]
[1748535400660,0.0616,107050.0,107040.0,1.42344039]
[1748535400882,0.0616,107050.0,107040.0,2.03199882]
[1748535401171,0.0616,107050.0,107040.0,1.52747268]